fUSD/lending_fUSD_20250716
["ID","MTS","AMOUNT","RATE_DAILY","PERIOD"]
[372584449,1752694242811,-556.89,0.00019999,2]
[372584451,1752694242822,-5492.42,0.00019999,2]
[372584453,1752694242831,-575.28,0.00019999,2]
[372584455,1752694242841,-504.15,0.00019999,2]
[372584457,1752694242850,-461.01924355,0.00019999,2]
[372584459,1752694242859,-460.0,0.00019999,2]
[372584461,1752694242869,-460.0,0.00019999,2]
[372584463,1752694242879,-20173.8,0.00019999,2]
[372584466,1752694242888,-460.0,0.00019999,2]
[372584468,1752694242898,-460.0,0.00019999,2]
[372584470,1752694242908,-460.0,0.00019999,2]
[372584472,1752694242918,-1126.17,0.00019999,2]
[372584474,1752694242928,-1749.11,0.00019999,2]
[372584476,1752694242937,-460.0,0.00019999,2]
[372584478,1752694242946,-167.69222795,0.00019999,2]
[372584480,1752694242956,-460.0,0.00019999,2]
[372584482,1752694242965,-460.0,0.00019999,2]
[372584484,1752694242974,-460.0,0.00019999,2]
[372584486,1752694242984,-460.0,0.00019999,2]
[372584488,1752694242993,-1743.43,0.00019999,2]
[372584490,1752694243002,-460.0,0.00019999,2]
[372584492,1752694243011,-469.75,0.00019999,2]
[372584494,1752694243021,-460.0,0.00019999,2]
[372584496,1752694243030,-1924.77,0.00019999,2]
[372584498,1752694243039,-460.0,0.00019999,2]
[372584500,1752694243048,-3807.88,0.00019999,2]
[372584502,1752694243057,-462.42014846,0.00019999,2]
[372584503,1752694243066,-460.0,0.00019999,2]
[372584506,1752694243076,-460.0,0.00019999,2]
[372584508,1752694243085,-1430.3,0.00019999,2]
[372584510,1752694243096,-460.0,0.00019999,2]
[372584512,1752694243107,-1538.52,0.00019999,2]
[372584514,1752694243116,-460.0,0.00019999,2]
[372584515,1752694243127,-462.2181031,0.00019999,2]
[372584518,1752694243136,-460.0,0.00019999,2]
[372584520,1752694243146,-778.91,0.00019999,2]
[372584522,1752694243155,-460.0,0.00019999,2]
[372584524,1752694243165,-2522.39,0.00019999,2]
[372584525,1752694243175,-670.27,0.00019999,2]
[372584528,1752694243193,-1027.2,0.00019999,2]
[372584530,1752694243204,-460.0,0.00019999,2]
[372584532,1752694243214,-460.0,0.00019999,2]
[372584534,1752694243226,-460.0,0.00019999,2]
[372584536,1752694243238,-460.0,0.00019999,2]
[372584538,1752694243248,-551.73,0.00019999,2]
[372584540,1752694243261,-460.0,0.00019999,2]
[372584542,1752694243272,-460.0,0.00019999,2]
[372584544,1752694243284,-460.0,0.00019999,2]
[372584546,1752694243294,-1567.6,0.00019999,2]
[372584548,1752694243306,-757.32,0.00019999,2]
[372584550,1752694243317,-3913.3,0.00019999,2]
[372584552,1752694243328,-460.0,0.00019999,2]
[372584554,1752694243338,-536.71,0.00019999,2]
[372584556,1752694243348,-426.21327319,0.00019999,2]
[372584558,1752694243358,-5842.8,0.00019999,2]
[372584560,1752694243368,-3344.01,0.00019999,2]
[372584562,1752694243377,-460.0,0.00019999,2]
[372584564,1752694243387,-462.39568336,0.00019999,2]
[372584566,1752694243396,-1129.98,0.00019999,2]
[372584568,1752694243406,-593.19,0.00019999,2]
[372584570,1752694243416,-460.0,0.00019999,2]
[372584572,1752694243429,-463.55991285,0.00019999,2]
[372584574,1752694243442,-659.29,0.00019999,2]
[372584576,1752694243452,-1804.39,0.00019999,2]
[372584578,1752694243462,-500.0,0.00019999,2]
[372584579,1752694243471,-1932.82,0.00019999,2]
[372584581,1752694243481,-460.0,0.00019999,2]
[372584583,1752694243490,-732.34,0.00019999,2]
[372584585,1752694243500,-1408.65,0.00019999,2]
[372584587,1752694243509,-767.34,0.00019999,2]
[372584589,1752694243518,-645.81,0.00019999,2]
[372584591,1752694243527,-732.34,0.00019999,2]
[372584594,1752694243537,-460.0,0.00019999,2]
[372584596,1752694243546,-460.0,0.00019999,2]
[372584598,1752694243556,-460.0,0.00019999,2]
[372584600,1752694243565,-3981.88,0.00019999,2]
[372584602,1752694243574,-1682.16,0.00019999,2]
[372584604,1752694243584,-460.0,0.00019999,2]
[372584606,1752694243594,-460.0,0.00019999,2]
[372584608,1752694243603,-460.0,0.00019999,2]
[372584610,1752694243612,-460.0,0.00019999,2]
[372584612,1752694243622,-460.0,0.00019999,2]
[372584614,1752694243631,-460.0,0.00019999,2]
[372584616,1752694243641,-460.0,0.00019999,2]
[372584619,1752694243650,-12723.88,0.00019999,2]
[372584621,1752694243660,-460.0,0.00019999,2]
[372584623,1752694243670,-460.0,0.00019999,2]
[372584624,1752694243685,-670.06,0.00019999,2]
[372584626,1752694243694,-460.0,0.00019999,2]
[372584628,1752694243703,-3114.36,0.00019999,2]
[372584631,1752694243714,-300322.4172838,0.0002,2]
[372584633,1752694243723,-1206.72650711,0.0002,2]
[372584635,1752694243734,-155.62404114,0.0002,2]
[372584637,1752694243747,-500.0,0.0002,2]
[372584639,1752694243756,-255.81794525,0.0002,2]
[372584641,1752694243766,-444.84580765,0.0002,3]
[372584643,1752694243778,-164.45048211,0.0002,2]
[372584645,1752694243788,-300.0,0.0002,2]
[372584647,1752694243799,-10000.0,0.0002,2]
[372584649,1752694243808,-500.0,0.0002,2]
[372584651,1752694243819,-200.0,0.0002,2]
[372584653,1752694243828,-1000.0,0.0002,2]
[372584655,1752694243838,-1000.0,0.0002,2]
[372584657,1752694243848,-398.17988287,0.0002,2]
[372584659,1752694243858,-446.17417955,0.0002,2]
[372584661,1752694243868,-151.0,0.0002,2]
[372584663,1752694243877,-151.0,0.0002,2]
[372584665,1752694243886,-153.37950362,0.0002,2]
[372584667,1752694243896,-623.0,0.0002,2]
[372584669,1752694243906,-500.0,0.0002,2]
[372584671,1752694243916,-500.0,0.0002,2]
[372584673,1752694243925,-201.16342129,0.0002,2]
[372584675,1752694243937,-500.0,0.0002,2]
[372584677,1752694243946,-662.0,0.0002,2]
[372584679,1752694243956,-500.0,0.0002,2]
[372584681,1752694243965,-500.0,0.0002,2]
[372584683,1752694243974,-151.0,0.0002,2]
[372584685,1752694243984,-151.0,0.0002,2]
[372584687,1752694243994,-435.0,0.0002,2]
[372584688,1752694244003,-150.0,0.0002,2]
[372584689,1752694244012,-500.0,0.0002,2]
[372584690,1752694244022,-151.0,0.0002,2]
[372584691,1752694244031,-3000.0,0.0002,2]
[372584692,1752694244042,-151.0,0.0002,2]
[372584693,1752694244051,-151.0,0.0002,2]
[372584694,1752694244061,-293.823009,0.0002,2]
[372584695,1752694244070,-151.0,0.0002,2]
[372584696,1752694244079,-500.0,0.0002,2]
[372584697,1752694244089,-760.29004191,0.0002,2]
[372584698,1752694244099,-80832.78477474,0.0002,2]
[372584699,1752694244108,-924.321404,0.0002,2]
[372584700,1752694244117,-1209.0,0.0002,2]
[372584702,1752694244127,-1209.0,0.0002,2]
[372584704,1752694244137,-152.0,0.0002,2]
[372584706,1752694244147,-924.321404,0.0002,2]
[372584707,1752694244158,-1240.34221308,0.0002,2]
[372584710,1752694244169,-151.0,0.0002,2]
[372584712,1752694244182,-150.0,0.0002,2]
[372584714,1752694244192,-150.74719734,0.0002,2]
[372584716,1752694244202,-500.0,0.0002,2]
[372584718,1752694244211,-150.0,0.0002,2]
[372584720,1752694244221,-500.0,0.0002,2]
[372584722,1752694244231,-200.349214,0.0002,2]
[372584724,1752694244240,-1110.0,0.0002,2]
[372584725,1752694244250,-151.0,0.0002,2]
[372584728,1752694244266,-151.0,0.0002,2]
[372584730,1752694244275,-200.349214,0.0002,2]
[372584731,1752694244285,-151.260736,0.0002,2]
[372584734,1752694244295,-151.0,0.0002,2]
[372584735,1752694244304,-151.0,0.0002,2]
[372584737,1752694244314,-152.210049,0.0002,2]
[372584739,1752694244323,-752.265853,0.0002,2]
[372584741,1752694244332,-752.265853,0.0002,2]
[372584743,1752694244341,-151.0,0.0002,2]
[372584745,1752694244351,-151.0,0.0002,2]
[372584747,1752694244360,-200.0,0.0002,2]
[372584749,1752694244371,-200.0,0.0002,2]
[372584751,1752694244381,-200.0,0.0002,2]
[372584763,1752694244486,-152.050504,0.0002,2]
[372584766,1752694244496,-151.0,0.0002,2]
[372584767,1752694244506,-151.0,0.0002,2]
[372584769,1752694244515,-151.0,0.0002,2]
[372584771,1752694244524,-151.0,0.0002,2]
[372584773,1752694244534,-151.0,0.0002,2]
[372584775,1752694244543,-184.424873,0.0002,2]
[372584777,1752694244552,-151.0,0.0002,2]
[372584779,1752694244562,-157.681486,0.0002,2]
[372584781,1752694244571,-151.0,0.0002,2]
[372584783,1752694244580,-151.0,0.0002,2]
[372584785,1752694244590,-151.0,0.0002,2]
[372584787,1752694244599,-347.243764,0.0002,2]
[372584789,1752694244608,-347.243764,0.0002,2]
[372584791,1752694244617,-347.243764,0.0002,2]
[372584793,1752694244627,-347.243764,0.0002,2]
[372584795,1752694244636,-4000.0,0.0002,4]
[372584797,1752694244645,-151.0,0.0002,2]
[372584799,1752694244654,-151.0,0.0002,2]
[372584801,1752694244663,-151.0,0.0002,2]
[372584803,1752694244672,-151.0,0.0002,2]
[372584805,1752694244682,-4321.4053826,0.00020009,2]
[372584807,1752694244692,-263.451,0.00020023,2]
[372584809,1752694244701,-4171.0650471,0.00020024,2]
[372584811,1752694244711,-960.54859386,0.00020038,2]
[372584813,1752694244720,-2823.09,0.00020042,2]
[372584815,1752694244731,-500.0,0.00020042,2]
[372584817,1752694244742,-500.0,0.00020042,2]
[372584819,1752694244752,-500.0,0.00020042,2]
[372584821,1752694244761,-4496.15507419,0.00020053,2]
[372584823,1752694244770,-1196.24039855,0.00020085,2]
[372584825,1752694244780,-169.81054194,0.00020085,2]
[372584827,1752694244790,-166.59,0.00020086,2]
[372584829,1752694244799,-5432.22539195,0.00020095,2]
[372584831,1752694244811,-4662.51281194,0.00020108,2]
[372584833,1752694244820,-732.34,0.00020114,2]
[372584835,1752694244829,-460.0,0.00020115,2]
[372584837,1752694244839,-460.0,0.00020115,2]
[372584839,1752694244848,-6271.53,0.00020115,2]
[372584841,1752694244857,-2395.89,0.00020115,2]
[372584843,1752694244867,-2253.51,0.00020115,2]
[372584845,1752694244877,-2984.68,0.00020115,2]
[372584847,1752694244887,-1035.24,0.00020115,2]
[372584849,1752694244896,-4601.06,0.00020115,2]
[372584851,1752694244906,-12291.03,0.00020115,2]
[372584853,1752694244915,-460.0,0.00020115,2]
[372584855,1752694244924,-2813.36,0.00020115,2]
[372584857,1752694244937,-2348.95,0.00020115,2]
[372584859,1752694244946,-1391.5,0.00020115,2]
[372584861,1752694244956,-3452.04,0.00020115,2]
[372584863,1752694244967,-968.86,0.00020115,2]
[372584865,1752694244976,-2953.12,0.00020115,2]
[372584867,1752694244985,-646.85,0.00020115,2]
[372584869,1752694244995,-11314.79,0.00020115,2]
[372584870,1752694245005,-2418.2,0.00020115,2]
[372584872,1752694245014,-3107.21,0.00020115,2]
[372584874,1752694245023,-2361.71,0.00020115,2]
[372584877,1752694245034,-1621.06,0.00020115,2]
[372584879,1752694245043,-729.37,0.00020115,2]
[372584881,1752694245052,-460.0,0.00020116,2]
[372584883,1752694245061,-460.0,0.00020116,2]
[372584885,1752694245070,-1194.52,0.00020116,2]
[372584887,1752694245079,-460.0,0.00020116,2]
[372584889,1752694245088,-460.0,0.00020116,2]
[372584891,1752694245097,-3120.91,0.00020116,2]
[372584892,1752694245106,-460.0,0.00020116,2]
[372584894,1752694245115,-5223.53,0.00020116,2]
[372584896,1752694245124,-460.0,0.00020116,2]
[372584898,1752694245134,-3137.69,0.00020116,2]
[372584900,1752694245143,-460.0,0.00020116,2]
[372584902,1752694245152,-3420.9,0.00020116,2]
[372584904,1752694245162,-460.0,0.00020116,2]
[372584906,1752694245171,-460.0,0.00020116,2]
[372584908,1752694245183,-1086.3,0.00020116,2]
[372584910,1752694245192,-9171.8,0.00020116,2]
[372584912,1752694245201,-727.29,0.00020116,2]
[372584914,1752694245211,-3548.11,0.00020116,2]
[372584916,1752694245222,-460.0,0.00020116,2]
[372584918,1752694245231,-1563.95,0.00020116,2]
[372584920,1752694245240,-1111.61,0.00020116,2]
[372584922,1752694245249,-460.0,0.00020116,2]
[372584924,1752694245258,-5933.97,0.00020116,2]
[372584926,1752694245267,-2817.29,0.00020116,2]
[372584928,1752694245277,-493.91,0.00020116,2]
[372584930,1752694245290,-460.0,0.00020116,2]
[372584932,1752694245298,-460.0,0.00020116,2]
[372584934,1752694245307,-460.0,0.00020116,2]
[372584936,1752694245317,-3695.96,0.00020116,2]
[372584938,1752694245326,-460.0,0.00020116,2]
[372584940,1752694245335,-460.0,0.00020116,2]
[372584942,1752694245344,-460.0,0.00020116,2]
[372584944,1752694245353,-460.0,0.00020116,2]
[372584946,1752694245363,-498.6646011,0.00020116,2]
[372584947,1752694245372,-1320.64,0.00020116,2]
[372584949,1752694245382,-467.9,0.00020116,2]
[372584951,1752694245391,-460.0,0.00020116,2]
[372584953,1752694245401,-2898.84,0.00020116,2]
[372584955,1752694245411,-460.0,0.00020116,2]
[372584957,1752694245420,-1132.7,0.00020116,2]
[372584959,1752694245432,-460.0,0.00020116,2]
[372584961,1752694245442,-460.0,0.00020116,2]
[372584963,1752694245451,-543.5,0.00020116,2]
[372584965,1752694245461,-10965.39151319,0.00020117,2]
[372584967,1752694245470,-732.34,0.00020135,2]
[372584969,1752694245480,-460.0,0.00020136,2]
[372584972,1752694245490,-1656.95,0.00020136,2]
[372584974,1752694245500,-460.0,0.00020136,2]
[372584976,1752694245510,-587.64,0.00020136,2]
[372584979,1752694245520,-460.0,0.00020136,2]
[372584983,1752694245529,-460.0,0.00020136,2]
[372584985,1752694245538,-1564.78,0.00020136,2]
[372584987,1752694245547,-460.0,0.00020136,2]
[372584989,1752694245557,-460.0,0.00020136,2]
[372584991,1752694245565,-772.32,0.00020136,2]
[372584993,1752694245574,-460.0,0.00020136,2]
[372584995,1752694245584,-465.68448721,0.00020136,2]
[372584997,1752694245593,-3144.44,0.00020136,2]
[372584999,1752694245602,-1330.7,0.00020136,2]
[372585001,1752694245611,-1896.94,0.00020136,2]
[372585003,1752694245621,-460.0,0.00020136,2]
[372585005,1752694245630,-1097.47,0.00020136,2]
[372585007,1752694245639,-1469.82,0.00020136,2]
[372585009,1752694245648,-460.0,0.00020136,2]
[372585011,1752694245658,-957.9,0.00020136,2]
[372585013,1752694245667,-460.0,0.00020136,2]
[372585015,1752694245676,-460.0,0.00020136,2]
[372585017,1752694245688,-460.0,0.00020136,2]
[372585019,1752694245698,-460.0,0.00020136,2]
[372585021,1752694245708,-460.87566142,0.00020136,2]
[372585023,1752694245718,-460.0,0.00020136,2]
[372585025,1752694245728,-460.0,0.00020136,2]
[372585027,1752694245738,-2876.39,0.00020136,2]
[372585029,1752694245751,-1934.86,0.00020136,2]
[372585031,1752694245760,-460.0,0.00020136,2]
[372585033,1752694245770,-2608.13,0.00020136,2]
[372585035,1752694245780,-460.0,0.00020136,2]
[372585037,1752694245789,-460.0,0.00020136,2]
[372585039,1752694245798,-460.0,0.00020136,2]
[372585041,1752694245807,-460.0,0.00020136,2]
[372585043,1752694245817,-526.01,0.00020136,2]
[372585045,1752694245827,-338.13819307,0.00020136,2]
[372585047,1752694245838,-460.0,0.00020136,2]
[372585049,1752694245847,-460.0,0.00020136,2]
[372585051,1752694245856,-491.31,0.00020136,2]
[372585053,1752694245865,-1378.67,0.00020136,2]
[372585055,1752694245874,-830.86,0.00020136,2]
[372585056,1752694245885,-460.0,0.00020136,2]
[372585059,1752694245895,-1983.58,0.00020136,2]
[372585060,1752694245904,-931.2,0.00020136,2]
[372585062,1752694245914,-1745.99,0.00020136,2]
[372585064,1752694245923,-1359.65,0.00020136,2]
[372585067,1752694245936,-503.6,0.00020136,2]
[372585068,1752694245945,-460.0,0.00020136,2]
[372585070,1752694245954,-922.13,0.00020136,2]
[372585072,1752694245963,-2672.79,0.00020136,2]
[372585074,1752694245972,-460.0,0.00020136,2]
[372585076,1752694245981,-460.0,0.00020136,2]
[372585078,1752694245990,-640.94,0.00020136,2]
[372585080,1752694246000,-460.0,0.00020136,2]
[372585082,1752694246008,-9838.15,0.00020136,2]
[372585084,1752694246018,-460.0,0.00020136,2]
[372585086,1752694246027,-460.0,0.00020136,2]
[372585088,1752694246036,-2925.31,0.00020136,2]
[372585090,1752694246045,-2608.25,0.00020136,2]
[372585092,1752694246055,-460.0,0.00020136,2]
[372585094,1752694246064,-561.84656955,0.00020136,2]
[372585096,1752694246073,-869.77,0.00020136,2]
[372585098,1752694246082,-460.0,0.00020136,2]
[372585100,1752694246091,-460.0,0.00020136,2]
[372585102,1752694246100,-490.0,0.00020136,2]
[372585104,1752694246109,-1672.48,0.00020136,2]
[372585106,1752694246118,-460.0,0.00020136,2]
[372585108,1752694246127,-462.27567643,0.00020136,2]
[372585110,1752694246138,-1140.6,0.00020136,2]
[372585112,1752694246146,-1043.68,0.00020136,2]
[372585114,1752694246155,-460.0,0.00020136,2]
[372585116,1752694246165,-460.0,0.00020136,2]
[372585118,1752694246174,-460.0,0.00020136,2]
[372585120,1752694246187,-460.0,0.00020136,2]
[372585122,1752694246196,-1932.45,0.00020136,2]
[372585124,1752694246205,-59244.77,0.00020136,2]
[372585127,1752694246214,-460.0,0.00020136,2]
[372585129,1752694246224,-959.99,0.00020136,2]
[372585131,1752694246233,-1729.85,0.00020136,2]
[372585132,1752694246243,-626.11,0.00020136,2]
[372585134,1752694246252,-1819.74,0.00020136,2]
[372585136,1752694246262,-460.0,0.00020136,2]
[372585138,1752694246271,-3818.88,0.00020136,2]
[372585140,1752694246280,-460.0,0.00020136,2]
[372585142,1752694246289,-4762.78,0.00020136,2]
[372585144,1752694246298,-500.0,0.00020136,2]
[372585146,1752694246307,-460.0,0.00020136,2]
[372585148,1752694246316,-460.0,0.00020136,2]
[372585150,1752694246326,-460.0,0.00020136,2]
[372585152,1752694246336,-1231.4,0.00020136,2]
[372585154,1752694246345,-465.10079346,0.00020136,2]
[372585156,1752694246353,-725.57,0.00020136,2]
[372585158,1752694246363,-460.0,0.00020136,2]
[372585160,1752694246372,-460.0,0.00020136,2]
[372585162,1752694246381,-6423.53,0.00020136,2]
[372585164,1752694246390,-512.32,0.00020136,2]
[372585166,1752694246399,-460.0,0.00020136,2]
[372585168,1752694246408,-460.0,0.00020136,2]
[372585170,1752694246418,-5637.6,0.00020136,2]
[372585172,1752694246427,-8631.44,0.00020136,2]
[372585174,1752694246439,-460.0,0.00020136,2]
[372585176,1752694246449,-611.66,0.00020136,2]
[372585178,1752694246459,-460.0,0.00020136,2]
[372585180,1752694246468,-460.0,0.00020136,2]
[372585182,1752694246477,-3109.43,0.00020136,2]
[372585184,1752694246486,-460.0,0.00020136,2]
[372585186,1752694246496,-3305.62,0.00020136,2]
[372585187,1752694246505,-460.0,0.00020136,2]
[372585188,1752694246514,-2174.91,0.00020136,2]
[372585189,1752694246524,-460.0,0.00020136,2]
[372585191,1752694246533,-472.6,0.00020136,2]
[372585193,1752694246542,-626.4,0.00020136,2]
[372585195,1752694246551,-759.17,0.00020136,2]
[372585197,1752694246561,-3348.08,0.00020136,2]
[372585199,1752694246570,-460.0,0.00020136,2]
[372585201,1752694246579,-725.87,0.00020136,2]
[372585203,1752694246588,-460.0,0.00020136,2]
[372585205,1752694246597,-460.0,0.00020136,2]
[372585207,1752694246611,-10145.87,0.00020136,2]
[372585209,1752694246620,-460.0,0.00020136,2]
[372585211,1752694246630,-460.0,0.00020136,2]
[372585213,1752694246639,-460.0,0.00020136,2]
[372585215,1752694246648,-762.06,0.00020136,2]
[372585217,1752694246658,-460.0,0.00020136,2]
[372585219,1752694246668,-962.22,0.00020136,2]
[372585221,1752694246678,-460.0,0.00020136,2]
[372585223,1752694246689,-461.52471845,0.00020136,2]
[372585225,1752694246699,-525.46215079,0.00020136,2]
[372585227,1752694246708,-460.0,0.00020136,2]
[372585229,1752694246718,-1880.32,0.00020136,2]
[372585231,1752694246728,-599.27,0.00020136,2]
[372585232,1752694246744,-1217.36,0.00020136,2]
[372585234,1752694246753,-1461.49,0.00020136,2]
[372585237,1752694246762,-460.0,0.00020136,2]
[372585239,1752694246771,-460.0,0.00020136,2]
[372585240,1752694246782,-5019.18,0.00020136,2]
[372585243,1752694246791,-460.0,0.00020136,2]
[372585245,1752694246800,-460.0,0.00020136,2]
[372585246,1752694246809,-5738.75,0.00020136,2]
[372585248,1752694246819,-460.0,0.00020136,2]
[372585251,1752694246829,-460.0,0.00020136,2]
[372585253,1752694246838,-460.0,0.00020136,2]
[372585254,1752694246848,-460.0,0.00020136,2]
[372585256,1752694246857,-652.54,0.00020136,2]
[372585258,1752694246866,-1261.36,0.00020136,2]
[372585260,1752694246876,-1096.18,0.00020136,2]
[372585262,1752694246885,-6783.38,0.00020136,2]
[372585264,1752694246895,-460.0,0.00020136,2]
[372585266,1752694246905,-10900.95,0.00020136,2]
[372585268,1752694246915,-460.0,0.00020136,2]
[372585270,1752694246924,-1120.19,0.00020136,2]
[372585272,1752694246936,-460.0,0.00020136,2]
[372585274,1752694246946,-490.18,0.00020136,2]
[372585276,1752694246956,-460.0,0.00020136,2]
[372585278,1752694246967,-460.0,0.00020136,2]
[372585280,1752694246977,-1512.18,0.00020136,2]
[372585282,1752694246987,-460.0,0.00020136,2]
[372585284,1752694246997,-460.0,0.00020136,2]
[372585286,1752694247008,-2746.44,0.00020136,2]
[372585288,1752694247017,-460.0,0.00020136,2]
[372585290,1752694247027,-460.0,0.00020136,2]
[372585292,1752694247037,-460.0,0.00020136,2]
[372585294,1752694247047,-460.0,0.00020136,2]
[372585296,1752694247057,-2871.51,0.00020136,2]
[372585298,1752694247067,-460.0,0.00020136,2]
[372585300,1752694247076,-1446.2,0.00020136,2]
[372585302,1752694247085,-460.0,0.00020136,2]
[372585304,1752694247094,-460.0,0.00020136,2]
[372585306,1752694247104,-460.0,0.00020136,2]
[372585308,1752694247113,-571.84,0.00020136,2]
[372585310,1752694247122,-2481.38,0.00020136,2]
[372585312,1752694247132,-865.4,0.00020136,2]
[372585314,1752694247142,-1545.1,0.00020136,2]
[372585316,1752694247151,-579.12,0.00020136,2]
[372585318,1752694247161,-2865.57,0.00020136,2]
[372585320,1752694247170,-460.0,0.00020136,2]
[372585322,1752694247181,-3341.64,0.00020136,2]
[372585324,1752694247191,-461.10849675,0.00020136,2]
[372585326,1752694247200,-954.59,0.00020136,2]
[372585328,1752694247210,-662.44,0.00020136,2]
[372585330,1752694247219,-460.0,0.00020136,2]
[372585332,1752694247229,-460.0,0.00020136,2]
[372585334,1752694247238,-460.0,0.00020136,2]
[372585336,1752694247248,-460.0,0.00020136,2]
[372585338,1752694247257,-460.0,0.00020136,2]
[372585340,1752694247267,-524.49,0.00020136,2]
[372585342,1752694247276,-460.97307454,0.00020136,2]
[372585344,1752694247285,-1445.32,0.00020136,2]
[372585346,1752694247294,-1597.39,0.00020136,2]
[372585348,1752694247304,-460.0,0.00020136,2]
[372585350,1752694247315,-2709.09,0.00020136,2]
[372585352,1752694247324,-460.0,0.00020136,2]
[372585355,1752694247334,-5545.46,0.00020136,2]
[372585357,1752694247344,-1335.53,0.00020136,2]
[372585359,1752694247354,-510.13,0.00020136,2]
[372585361,1752694247364,-1304.17,0.00020136,2]
[372585363,1752694247373,-630.1,0.00020136,2]
[372585365,1752694247383,-11171.65,0.00020136,2]
[372585367,1752694247392,-460.0,0.00020136,2]
[372585369,1752694247401,-460.0,0.00020136,2]
[372585371,1752694247411,-2779.93,0.00020136,2]
[372585373,1752694247420,-462.48497575,0.00020136,2]
[372585375,1752694247429,-460.0,0.00020136,2]
[372585377,1752694247447,-460.0,0.00020136,2]
[372585379,1752694247456,-460.0,0.00020136,2]
[372585381,1752694247465,-4474.38,0.00020136,2]
[372585383,1752694247474,-460.0,0.00020136,2]
[372585385,1752694247483,-1148.73,0.00020136,2]
[372585388,1752694247493,-460.0,0.00020136,2]
[372585390,1752694247502,-460.0,0.00020136,2]
[372585392,1752694247511,-3075.57,0.00020136,2]
[372585393,1752694247520,-526.49,0.00020136,2]
[372585395,1752694247529,-2713.8,0.00020136,2]
[372585398,1752694247539,-3091.6,0.00020136,2]
[372585399,1752694247548,-806.94,0.00020136,2]
[372585402,1752694247557,-2266.31,0.00020136,2]
[372585404,1752694247568,-460.0,0.00020136,2]
[372585406,1752694247577,-1349.87,0.00020136,2]
[372585408,1752694247586,-460.0,0.00020136,2]
[372585410,1752694247595,-460.0,0.00020136,2]
[372585411,1752694247604,-1047.43,0.00020136,2]
[372585413,1752694247613,-549.68,0.00020136,2]
[372585415,1752694247623,-634.4,0.00020136,2]
[372585417,1752694247632,-2179.05,0.00020136,2]
[372585419,1752694247641,-916.81,0.00020136,2]
[372585421,1752694247651,-1174.7,0.00020136,2]
[372585423,1752694247660,-460.0,0.00020136,2]
[372585425,1752694247669,-460.0,0.00020136,2]
[372585427,1752694247678,-2595.12,0.00020136,2]
[372585429,1752694247692,-3870.23,0.00020136,2]
[372585431,1752694247702,-460.0,0.00020136,2]
[372585433,1752694247711,-561.55,0.00020136,2]
[372585435,1752694247720,-460.0,0.00020136,2]
[372585437,1752694247733,-2211.43,0.00020136,2]
[372585439,1752694247743,-460.0,0.00020136,2]
[372585441,1752694247753,-2071.85,0.00020136,2]
[372585443,1752694247763,-460.0,0.00020136,2]